fUSD/lending_fUSD_20250209
["ID","MTS","AMOUNT","RATE_DAILY","PERIOD"]
[352379624,1739068267391,-500.0,0.00010811,2]
[352379625,1739068267400,-500.0,0.00010811,2]
[352379626,1739068267409,-500.0,0.00010811,2]
[352379627,1739068267418,-500.0,0.00010811,2]
[352379628,1739068267427,-500.0,0.00010811,2]
[352379629,1739068267437,-529.18945805,0.00010811,2]
[352379630,1739068267446,-500.0,0.00010811,2]
[352379631,1739068267456,-197.64417539,0.00010811,2]
[352379632,1739068267466,-500.0,0.00010811,2]
[352379633,1739068267475,-500.0,0.00010811,2]
[352379634,1739068267485,-500.0,0.00010811,2]
[352379635,1739068267495,-524.75562687,0.00010811,2]
[352379636,1739068267504,-506.74881279,0.00010811,2]
[352379637,1739068267514,-500.0,0.00010811,2]
[352379638,1739068267524,-500.0,0.00010811,2]
[352379639,1739068267534,-500.0,0.00010811,2]
[352379640,1739068267543,-500.0,0.00010811,2]
[352379641,1739068267552,-500.0,0.00010811,2]
[352379642,1739068267562,-425.65438455,0.00010811,2]
[352379643,1739068267571,-449.33708681,0.00010811,2]
[352379644,1739068267581,-511.89837074,0.00010811,2]
[352379645,1739068267590,-367.91442292,0.00010811,2]
[352379646,1739068267600,-500.0,0.00010811,2]
[352379647,1739068267609,-507.05174461,0.00010811,2]
[352379648,1739068267619,-500.0,0.00010811,2]
[352379649,1739068267628,-500.0,0.00010811,2]
[352379650,1739068267637,-500.0,0.00010811,2]
[352379651,1739068267647,-500.0,0.00010811,2]
[352379652,1739068267657,-500.0,0.00010811,2]
[352379653,1739068267666,-500.0,0.00010811,2]
[352379654,1739068267675,-500.0,0.00010811,2]
[352379655,1739068267685,-500.0,0.00010811,2]
[352379656,1739068267694,-500.0,0.00010811,2]
[352379657,1739068267704,-155.66900038,0.00010811,2]
[352379658,1739068267714,-500.0,0.00010811,2]
[352379659,1739068267723,-512.088845,0.00010811,2]
[352379660,1739068267732,-500.0,0.00010811,2]
[352379661,1739068267741,-500.0,0.00010811,2]
[352379662,1739068267751,-500.0,0.00010811,2]
[352379663,1739068267760,-500.0,0.00010811,2]
[352379664,1739068267770,-500.0,0.00010811,2]
[352379665,1739068267780,-500.0,0.00010811,2]
[352379666,1739068267789,-500.0,0.00010811,2]
[352379667,1739068267799,-500.0,0.00010811,2]
[352379668,1739068267810,-500.0,0.00010811,2]
[352379669,1739068267821,-500.0,0.00010811,2]
[352379670,1739068267830,-500.0,0.00010811,2]
[352379671,1739068267842,-500.0,0.00010811,2]
[352379672,1739068267854,-448.8946655,0.00010811,2]
[352379673,1739068267864,-158.53666612,0.00010811,2]
[352379674,1739068267874,-500.0,0.00010811,2]
[352379675,1739068267884,-500.0,0.00010811,2]
[352379676,1739068267895,-500.0,0.00010811,2]
[352379677,1739068267904,-433.29019923,0.00010811,2]
[352379678,1739068267913,-500.0,0.00010811,2]
[352379679,1739068267923,-500.0,0.00010811,2]
[352379680,1739068267935,-522.95341549,0.00010811,2]
[352379681,1739068267946,-500.0,0.00010811,2]
[352379682,1739068267956,-178.25475796,0.00010811,2]
[352379683,1739068267965,-500.0,0.00010811,2]
[352379684,1739068267975,-582.27786136,0.00010811,2]
[352379685,1739068267984,-500.0,0.00010811,2]
[352379686,1739068267993,-500.0,0.00010811,2]
[352379687,1739068268004,-500.0,0.00010811,2]
[352379688,1739068268013,-500.0,0.00010811,2]
[352379689,1739068268024,-500.0,0.00010811,2]
[352379690,1739068268034,-500.0,0.00010811,2]
[352379691,1739068268044,-500.0,0.00010811,2]
[352379692,1739068268053,-500.0,0.00010811,2]
[352379693,1739068268062,-198.94384789,0.00010811,2]
[352379694,1739068268072,-500.0,0.00010811,2]
[352379695,1739068268081,-500.0,0.00010811,2]
[352379696,1739068268091,-601.78439123,0.00010811,2]
[352379697,1739068268100,-500.0,0.00010811,2]
[352379698,1739068268109,-500.0,0.00010811,2]
[352379699,1739068268119,-500.0,0.00010811,2]
[352379700,1739068268129,-500.0,0.00010811,2]
[352379701,1739068268139,-1039.13,0.00010811,2]
[352379702,1739068268148,-500.0,0.00010811,2]
[352379703,1739068268158,-1045.67,0.00010811,2]
[352379704,1739068268167,-500.0,0.00010811,2]
[352379705,1739068268176,-2505.02,0.00010811,2]
[352379706,1739068268186,-500.0,0.00010811,2]
[352379707,1739068268196,-500.0,0.00010811,2]
[352379708,1739068268206,-500.0,0.00010811,2]
[352379709,1739068268216,-785.35,0.00010811,2]
[352379710,1739068268226,-500.0,0.00010811,2]
[352379711,1739068268236,-1090.29,0.00010811,2]
[352379712,1739068268246,-500.0,0.00010811,2]
[352379713,1739068268255,-1345.79,0.00010811,2]
[352379714,1739068268265,-395.92585495,0.00010811,2]
[352379715,1739068268276,-500.0,0.00010811,2]
[352379716,1739068268287,-1000.0,0.00010811,2]
[352379717,1739068268298,-969.66,0.00010811,2]
[352379718,1739068268309,-500.0,0.00010811,2]
[352379719,1739068268320,-500.0,0.00010811,2]
[352379720,1739068268331,-314.27464386,0.00010811,2]
[352379721,1739068268340,-500.0,0.00010811,2]
[352379722,1739068268350,-1750.99,0.00010811,2]
[352379723,1739068268360,-500.0,0.00010811,2]
[352379724,1739068268370,-500.0,0.00010811,2]
[352379725,1739068268383,-1987.42,0.00010811,2]
[352379726,1739068268396,-500.0,0.00010811,2]
[352379727,1739068268407,-500.0,0.00010811,2]
[352379728,1739068268417,-500.0,0.00010811,2]
[352379729,1739068268427,-500.0,0.00010811,2]
[352379730,1739068268436,-507.8782895,0.00010811,2]
[352379731,1739068268446,-500.0,0.00010811,2]
[352379732,1739068268457,-500.0,0.00010811,2]
[352379733,1739068268467,-510.08082336,0.00010811,2]
[352379734,1739068268477,-500.0,0.00010811,2]
[352379735,1739068268487,-500.0,0.00010811,2]
[352379736,1739068268498,-500.0,0.00010811,2]
[352379737,1739068268511,-500.0,0.00010811,2]
[352379738,1739068268522,-500.0,0.00010811,2]
[352379739,1739068268532,-500.0,0.00010811,2]
[352379740,1739068268543,-500.0,0.00010811,2]
[352379741,1739068268554,-500.0,0.00010811,2]
[352379742,1739068268565,-500.0,0.00010811,2]
[352379743,1739068268575,-500.0,0.00010811,2]
[352379744,1739068268586,-500.0,0.00010811,2]
[352379745,1739068268596,-500.0,0.00010811,2]
[352379746,1739068268606,-500.0,0.00010812,2]
[352379747,1739068268616,-500.0,0.00010812,2]
[352379748,1739068268626,-500.0,0.00010812,2]
[352379749,1739068268635,-515.50699642,0.00010812,2]
[352379750,1739068268645,-500.0,0.00010812,2]
[352379751,1739068268656,-500.0,0.00010812,2]
[352379752,1739068268666,-500.0,0.00010812,2]
[352379753,1739068268676,-500.0,0.00010812,2]
[352379754,1739068268686,-500.0,0.00010812,2]
[352379755,1739068268696,-687.79,0.00010812,2]
[352379756,1739068268706,-500.0,0.00010812,2]
[352379757,1739068268716,-500.0,0.00010812,2]
[352379758,1739068268726,-500.0,0.00010812,2]
[352379759,1739068268736,-500.0,0.00010812,2]
[352379760,1739068268747,-500.0,0.00010812,2]
[352379761,1739068268756,-500.0,0.00010812,2]
[352379762,1739068268766,-592.69872355,0.00010812,2]
[352379763,1739068268776,-500.0,0.00010812,2]
[352379764,1739068268786,-940.52,0.00010812,2]
[352379765,1739068268796,-500.0,0.00010812,2]
[352379766,1739068268806,-500.0,0.00010812,2]
[352379767,1739068268816,-500.0,0.00010812,2]
[352379768,1739068268826,-572.54,0.00010812,2]
[352379769,1739068268836,-500.0,0.00010812,2]
[352379770,1739068268847,-500.0,0.00010812,2]
[352379771,1739068268858,-582.83434521,0.00010812,2]
[352379772,1739068268868,-500.0,0.00010812,2]
[352379773,1739068268878,-713.14,0.00010812,2]
[352379774,1739068268889,-500.0,0.00010812,2]
[352379775,1739068268899,-789.17,0.00010812,2]
[352379776,1739068268909,-500.0,0.00010812,2]
[352379777,1739068268919,-500.0,0.00010812,2]
[352379778,1739068268931,-500.0,0.00010812,2]
[352379779,1739068268942,-500.0,0.00010812,2]
[352379780,1739068268952,-500.0,0.00010812,2]
[352379781,1739068268962,-419.44246343,0.00010812,2]
[352379782,1739068268972,-500.0,0.00010812,2]
[352379783,1739068268982,-500.0,0.00010812,2]
[352379784,1739068268992,-500.0,0.00010812,2]
[352379785,1739068269002,-500.0,0.00010812,2]
[352379786,1739068269012,-604.29,0.00010812,2]
[352379787,1739068269023,-500.0,0.00010812,2]
[352379788,1739068269034,-500.0,0.00010812,2]
[352379789,1739068269044,-500.0,0.00010812,2]
[352379790,1739068269054,-796.85,0.00010812,2]
[352379791,1739068269065,-500.0,0.00010812,2]
[352379792,1739068269075,-704.0,0.00010812,2]
[352379793,1739068269085,-500.0,0.00010812,2]
[352379794,1739068269095,-500.0,0.00010812,2]
[352379795,1739068269105,-500.0,0.00010812,2]
[352379796,1739068269115,-855.137713,0.00010812,2]
[352379797,1739068269125,-878.2,0.00010812,2]
[352379798,1739068269134,-965.48681,0.00010812,2]
[352379799,1739068269144,-500.0,0.00010812,2]
[352379800,1739068269154,-500.0,0.00010812,2]
[352379801,1739068269163,-500.0,0.00010812,2]
[352379802,1739068269173,-500.0,0.00010812,2]
[352379803,1739068269183,-500.0,0.00010812,2]
[352379804,1739068269193,-500.0,0.00010812,2]
[352379805,1739068269202,-500.0,0.00010812,2]
[352379806,1739068269211,-500.0,0.00010812,2]
[352379807,1739068269221,-500.0,0.00010812,2]
[352379808,1739068269231,-500.0,0.00010812,2]
[352379809,1739068269240,-500.0,0.00010812,2]
[352379810,1739068269250,-502.45,0.00010812,2]
[352379811,1739068269260,-500.0,0.00010812,2]
[352379812,1739068269271,-906.91,0.00010812,2]
[352379813,1739068269280,-500.0,0.00010812,2]
[352379814,1739068269290,-520.73,0.00010812,2]
[352379815,1739068269300,-500.0,0.00010812,2]
[352379816,1739068269310,-862.92,0.00010812,2]
[352379817,1739068269320,-850.75,0.00010812,2]
[352379818,1739068269330,-500.0,0.00010812,2]
[352379819,1739068269339,-500.0,0.00010812,2]
[352379820,1739068269349,-632.29,0.00010812,2]
[352379821,1739068269358,-867.75,0.00010812,2]
[352379822,1739068269369,-500.0,0.00010812,2]
[352379823,1739068269379,-500.0,0.00010812,2]
[352379824,1739068269389,-500.0,0.00010812,2]
[352379825,1739068269399,-500.0,0.00010812,2]
[352379826,1739068269408,-500.0,0.00010812,2]
[352379827,1739068269418,-657.74,0.00010812,2]
[352379828,1739068269428,-950.5,0.00010812,2]
[352379829,1739068269438,-500.0,0.00010812,2]
[352379830,1739068269448,-796.41,0.00010812,2]
[352379831,1739068269458,-500.0,0.00010812,2]
[352379832,1739068269468,-500.0,0.00010812,2]
[352379833,1739068269478,-500.0,0.00010812,2]
[352379834,1739068269488,-509.84769725,0.00010812,2]
[352379835,1739068269498,-500.0,0.00010812,2]
[352379836,1739068269507,-500.0,0.00010812,2]
[352379837,1739068269517,-789.95,0.00010812,2]
[352379838,1739068269527,-500.0,0.00010812,2]
[352379839,1739068269537,-500.0,0.00010812,2]
[352379840,1739068269546,-500.0,0.00010812,2]
[352379841,1739068269556,-500.0,0.00010812,2]
[352379842,1739068269566,-770.81,0.00010812,2]
[352379843,1739068269575,-1974.36,0.00010812,2]
[352379844,1739068269585,-796.4,0.00010812,2]
[352379845,1739068269596,-594.33,0.00010812,2]
[352379846,1739068269606,-713.04,0.00010812,2]
[352379847,1739068269616,-500.0,0.00010812,2]
[352379848,1739068269625,-500.0,0.00010812,2]
[352379849,1739068269636,-1895.12,0.00010812,2]
[352379850,1739068269646,-525.89,0.00010812,2]
[352379851,1739068269656,-500.0,0.00010812,2]
[352379852,1739068269666,-2888.1,0.00010812,2]
[352379853,1739068269676,-500.0,0.00010812,2]
[352379854,1739068269687,-1057.6,0.00010812,2]
[352379855,1739068269697,-1387.64,0.00010812,2]
[352379856,1739068269707,-500.0,0.00010812,2]
[352379857,1739068269717,-514.0,0.00010812,2]
[352379858,1739068269727,-1501.18,0.00010812,2]
[352379859,1739068269737,-1053.58,0.00010812,2]
[352379860,1739068269746,-514.54,0.00010812,2]
[352379861,1739068269756,-768.56,0.00010812,2]
[352379862,1739068269766,-535.07,0.00010812,2]
[352379863,1739068269776,-680.69,0.00010812,2]
[352379864,1739068269786,-500.0,0.00010812,2]
[352379865,1739068269796,-1231.64,0.00010812,2]
[352379866,1739068269806,-2192.35,0.00010812,2]
[352379867,1739068269816,-586.73,0.00010812,2]
[352379868,1739068269825,-500.0,0.00010812,2]
[352379869,1739068269835,-1046.17,0.00010812,2]
[352379870,1739068269846,-1813.69,0.00010812,2]
[352379871,1739068269859,-500.0,0.00010812,2]
[352379872,1739068269870,-1640.37,0.00010812,2]
[352379873,1739068269881,-669.76,0.00010812,2]
[352379874,1739068269891,-500.0,0.00010812,2]
[352379875,1739068269902,-912.52,0.00010812,2]
[352379876,1739068269913,-1735.55,0.00010812,2]
[352379877,1739068269923,-500.0,0.00010812,2]
[352379878,1739068269935,-500.0,0.00010812,2]
[352379879,1739068269947,-500.0,0.00010812,2]
[352379880,1739068269958,-1516.41,0.00010812,2]
[352379881,1739068269970,-1011.36,0.00010812,2]
[352379882,1739068269981,-500.0,0.00010812,2]
[352379883,1739068269991,-1292.34,0.00010812,2]
[352379884,1739068270001,-500.0,0.00010812,2]
[352379885,1739068270012,-1086.04,0.00010812,2]
[352379886,1739068270022,-500.0,0.00010812,2]
[352379887,1739068270032,-500.0,0.00010812,2]
[352379888,1739068270042,-788.32,0.00010812,2]
[352379889,1739068270052,-1813.88,0.00010812,2]
[352379890,1739068270063,-2183.54,0.00010812,2]
[352379891,1739068270072,-500.0,0.00010812,2]
[352379892,1739068270082,-798.61,0.00010812,2]
[352379893,1739068270092,-1408.01,0.00010812,2]
[352379894,1739068270102,-587.42458583,0.00010812,2]
[352379895,1739068270112,-678.49,0.00010812,2]
[352379896,1739068270123,-290.73554048,0.00010812,2]
[352379897,1739068270134,-1409.7,0.00010812,2]
[352379898,1739068270144,-967.29,0.00010812,2]
[352379899,1739068270154,-500.0,0.00010812,2]
[352379900,1739068270164,-645.64,0.00010812,2]
[352379901,1739068270175,-695.06,0.00010812,2]
[352379902,1739068270185,-349.17,0.00010812,2]
[352379903,1739068270197,-951.2,0.00010812,2]
[352379904,1739068270206,-1002.71,0.00010812,2]
[352379905,1739068270216,-500.0,0.00010812,2]
[352379906,1739068270226,-1894.78,0.00010812,2]
[352379907,1739068270236,-2146.73,0.00010812,2]
[352379908,1739068270246,-1508.57,0.00010812,2]
[352379909,1739068270258,-3646.49,0.00010812,2]
[352379910,1739068270268,-735.05,0.00010812,2]
[352379911,1739068270278,-500.0,0.00010812,2]
[352379912,1739068270288,-2412.9,0.00010812,2]
[352379913,1739068270297,-749.05,0.00010812,2]
[352379914,1739068270307,-1730.37,0.00010812,2]
[352379915,1739068270318,-984.54,0.00010812,2]
[352379916,1739068270327,-500.0,0.00010812,2]
[352379917,1739068270338,-2918.7,0.00010812,2]
[352379918,1739068270348,-500.0,0.00010812,2]
[352379919,1739068270358,-988.0,0.00010812,2]
[352379920,1739068270368,-967.87,0.00010812,2]
[352379921,1739068270379,-500.0,0.00010812,2]
[352379922,1739068270389,-500.0,0.00010812,2]
[352379923,1739068270399,-500.0,0.00010812,2]
[352379924,1739068270408,-500.0,0.00010812,2]
[352379925,1739068270419,-509.19,0.00010812,2]
[352379926,1739068270429,-500.0,0.00010812,2]
[352379927,1739068270440,-638.52,0.00010812,2]
[352379928,1739068270450,-1138.87,0.00010812,2]
[352379929,1739068270461,-570.46,0.00010812,2]
[352379930,1739068270471,-1633.4,0.00010812,2]
[352379931,1739068270480,-803.83,0.00010812,2]
[352379932,1739068270490,-500.0,0.00010812,2]
[352379933,1739068270500,-500.0,0.00010812,2]
[352379934,1739068270510,-500.0,0.00010812,2]
[352379935,1739068270522,-500.0,0.00010812,2]
[352379936,1739068270532,-1288.74,0.00010812,2]
[352379937,1739068270543,-1711.72,0.00010812,2]
[352379938,1739068270553,-1257.42,0.00010812,2]
[352379939,1739068270564,-517.79290372,0.00010812,2]
[352379940,1739068270575,-1369.94,0.00010812,2]
[352379941,1739068270763,-633.01,0.00010812,2]
[352379942,1739068270777,-1214.08,0.00010812,2]
[352379943,1739068270786,-630.24,0.00010812,2]
[352379944,1739068270796,-548.7,0.00010812,2]
[352379945,1739068270806,-1405.68,0.00010812,2]
[352379946,1739068270816,-500.0,0.00010812,2]
[352379947,1739068270826,-1452.51,0.00010812,2]
[352379948,1739068270836,-1705.78,0.00010812,2]
[352379949,1739068270847,-500.0,0.00010812,2]
[352379950,1739068270859,-621.33,0.00010812,2]
[352379951,1739068270869,-1951.52,0.00010812,2]
[352379952,1739068270879,-603.4,0.00010812,2]
[352379953,1739068270891,-500.0,0.00010812,2]
[352379954,1739068270900,-200.50802801,0.00010812,2]
[352379955,1739068270910,-2275.81,0.00010812,2]
[352379956,1739068270920,-328.36191652,0.00010812,2]
[352379957,1739068270932,-1151.28,0.00010812,2]
[352379958,1739068270941,-500.0,0.00010812,2]
[352379959,1739068270950,-5115.12,0.00010812,2]
[352379960,1739068270960,-500.0,0.00010812,2]
[352379961,1739068270969,-500.0,0.00010813,2]
[352379962,1739068270978,-303.91730574,0.00010813,2]
[352379963,1739068270987,-517.18996867,0.00010813,2]
[352379964,1739068270997,-500.0,0.00010813,2]
[352379965,1739068271006,-500.0,0.00010813,2]
[352379966,1739068271015,-520.49040532,0.00010813,2]
[352379967,1739068271027,-500.0,0.00010813,2]
[352379968,1739068271036,-500.0,0.00010813,2]
[352379969,1739068271046,-500.0,0.00010813,2]
[352379970,1739068271055,-500.0,0.00010813,2]
[352379971,1739068271065,-516.28649566,0.00010813,2]
[352379972,1739068271074,-500.0,0.00010813,2]
[352379973,1739068271083,-500.0,0.00010813,2]
[352379974,1739068271093,-511.06772701,0.00010813,2]
[352379975,1739068271102,-500.0,0.00010813,2]
[352379976,1739068271112,-512.10094718,0.00010813,2]
[352379977,1739068271121,-500.0,0.00010813,2]
[352379978,1739068271131,-500.0,0.00010813,2]
[352379979,1739068271140,-500.0,0.00010813,2]
[352379980,1739068271149,-500.0,0.00010813,2]
[352379981,1739068271159,-500.0,0.00010813,2]
[352379982,1739068271168,-500.0,0.00010813,2]
[352379983,1739068271178,-500.0,0.00010813,2]
[352379984,1739068271188,-785.18,0.00010821,2]
[352379985,1739068271199,-644.68,0.00010821,2]
[352379986,1739068271209,-646.35,0.00010821,2]
[352379987,1739068271218,-500.0,0.00010821,2]
[352379988,1739068271228,-1506.13,0.00010821,2]
[352379989,1739068271238,-1265.04,0.00010821,2]
[352379990,1739068271248,-1598.62,0.00010821,2]
[352379991,1739068271258,-1741.99,0.00010821,2]
[352379992,1739068271268,-500.0,0.00010821,2]
[352379993,1739068271278,-500.0,0.00010821,2]
[352379994,1739068271287,-1264.68,0.00010821,2]
[352379995,1739068271297,-1332.83,0.00010821,2]
[352379996,1739068271307,-1408.8,0.00010821,2]
[352379997,1739068271318,-2329.97,0.00010821,2]
[352379998,1739068271327,-1536.78,0.00010821,2]
[352379999,1739068271337,-704.79,0.00010821,2]
[352380000,1739068271347,-2199.8,0.00010821,2]
[352380001,1739068271357,-846.8,0.00010821,2]
[352380002,1739068271366,-599.69133801,0.00010821,2]
[352380003,1739068271377,-500.0,0.00010821,2]
[352380004,1739068271387,-500.0,0.00010821,2]
[352380005,1739068271397,-540.53,0.00010821,2]
[352380006,1739068271407,-500.0,0.00010821,2]
[352380007,1739068271416,-726.76,0.00010821,2]
[352380008,1739068271426,-1126.43,0.00010821,2]
[352380009,1739068271436,-500.0,0.00010821,2]
[352380010,1739068271445,-500.0,0.00010821,2]
[352380011,1739068271456,-500.0,0.00010821,2]
[352380012,1739068271466,-200.0,0.00010826,2]
[352380013,1739068271476,-783.583,0.00010831,2]
[352380014,1739068271487,-150.826,0.00010831,2]
[352380015,1739068271497,-3040.42885281,0.00010849,2]
[352380016,1739068271507,-150.0,0.0001085,2]
[352380017,1739068271516,-556.38052737,0.00010854,2]
[352380018,1739068271527,-556.38052737,0.00010855,2]
[352380019,1739068271537,-200.0,0.00010858,2]
[352380020,1739068271546,-556.38052737,0.00010864,2]
[352380021,1739068271555,-556.38052737,0.0001087,2]
[352380022,1739068271565,-150.0,0.00010888,2]
[352380023,1739068271575,-150.0,0.00010897,2]
[352380024,1739068271584,-1858048.86605,0.000109,2]
[352380025,1739068271594,-400.0,0.000109,3]
[352380026,1739068271605,-154.78807303,0.00010901,2]
[352380027,1739068271614,-150.0,0.00010903,2]
[352380028,1739068271623,-150.0,0.00010924,2]
[352380029,1739068271633,-186.42473,0.00010932,2]
[352380030,1739068271642,-150.0,0.00010933,2]
[352380031,1739068271653,-150.0,0.00010933,2]
[352380032,1739068271662,-581.47245907,0.00010948,2]
[352380033,1739068271672,-500.0,0.00010948,2]
[352380034,1739068271681,-159.10695924,0.00010948,2]
[352380035,1739068271691,-500.0,0.00010948,2]
[352380036,1739068271709,-500.0,0.00010948,2]
[352380037,1739068271719,-500.0,0.00010948,2]
[352380038,1739068271728,-564.6646935,0.00010948,2]
[352380039,1739068271738,-500.0,0.00010948,2]
[352380040,1739068271748,-500.0,0.00010948,2]
[352380041,1739068271758,-625.91828467,0.00010948,2]
[352380042,1739068271768,-533.81433131,0.00010948,2]
[352380043,1739068271778,-500.0,0.00010948,2]
[352380044,1739068271788,-500.0,0.00010948,2]
[352380045,1739068271797,-500.0,0.00010948,2]
[352380046,1739068271808,-500.0,0.00010948,2]
[352380047,1739068271818,-512.92307615,0.00010948,2]
[352380048,1739068271827,-500.0,0.00010948,2]
[352380049,1739068271836,-500.0,0.00010948,2]
[352380050,1739068271847,-500.0,0.00010948,2]
[352380051,1739068271856,-500.0,0.00010948,2]
[352380052,1739068271865,-500.0,0.00010948,2]
[352380053,1739068271874,-500.0,0.00010948,2]
[352380054,1739068271883,-500.0,0.00010948,2]
[352380055,1739068271893,-643.19706116,0.00010948,2]
[352380056,1739068271902,-500.0,0.00010948,2]
[352380057,1739068271912,-500.0,0.00010948,2]
[352380058,1739068271921,-500.0,0.00010948,2]
[352380059,1739068271932,-500.0,0.00010948,2]
[352380060,1739068271943,-500.0,0.00010948,2]
[352380061,1739068271952,-500.0,0.00010948,2]
[352380062,1739068271962,-500.0,0.00010948,2]
[352380063,1739068271973,-308.66868949,0.00010948,2]
[352380064,1739068271982,-500.0,0.00010948,2]
[352380065,1739068271992,-500.0,0.00010948,2]
[352380066,1739068272002,-500.0,0.00010948,2]
[352380067,1739068272012,-500.0,0.00010948,2]
[352380068,1739068272022,-500.0,0.00010948,2]
[352380069,1739068272032,-500.0,0.00010948,2]
[352380070,1739068272041,-500.0,0.00010948,2]
[352380071,1739068272050,-500.0,0.00010948,2]
[352380072,1739068272060,-500.0,0.00010948,2]
[352380073,1739068272069,-500.0,0.00010948,2]
[352380074,1739068272080,-528.28902977,0.00010948,2]
[352380075,1739068272089,-500.0,0.00010948,2]
[352380076,1739068272098,-500.0,0.00010948,2]
[352380077,1739068272107,-500.0,0.00010948,2]
[352380078,1739068272116,-500.0,0.00010948,2]
[352380079,1739068272125,-519.57110222,0.00010948,2]
[352380080,1739068272134,-500.0,0.00010948,2]
[352380081,1739068272143,-500.0,0.00010948,2]
[352380082,1739068272152,-500.0,0.00010948,2]
[352380083,1739068272161,-500.0,0.00010948,2]
[352380084,1739068272170,-222.5798705,0.00010948,2]
[352380085,1739068272179,-500.0,0.00010948,2]
[352380086,1739068272188,-500.0,0.00010948,2]
[352380087,1739068272198,-500.0,0.00010948,2]
[352380088,1739068272207,-431.32480575,0.00010948,2]
[352380089,1739068272216,-549.07228116,0.00010948,2]
[352380090,1739068272225,-500.0,0.00010948,2]
[352380091,1739068272234,-500.0,0.00010948,2]
[352380092,1739068272243,-500.0,0.00010948,2]
[352380093,1739068272253,-500.0,0.00010948,2]
[352380094,1739068272263,-1039.13,0.00010948,2]
[352380095,1739068272274,-500.0,0.00010948,2]
[352380096,1739068272284,-1045.67,0.00010948,2]
[352380097,1739068272294,-500.0,0.00010948,2]
[352380098,1739068272304,-2505.02,0.00010948,2]
[352380099,1739068272314,-500.0,0.00010948,2]
[352380100,1739068272323,-500.0,0.00010948,2]
[352380101,1739068272334,-500.0,0.00010948,2]
[352380102,1739068272344,-785.35,0.00010948,2]
[352380103,1739068272354,-500.0,0.00010948,2]
[352380104,1739068272364,-1090.29,0.00010948,2]
[352380105,1739068272374,-500.0,0.00010948,2]
[352380106,1739068272384,-1345.79,0.00010948,2]
[352380107,1739068272394,-500.0,0.00010948,2]
[352380108,1739068272404,-1000.0,0.00010948,2]
[352380109,1739068272414,-969.66,0.00010948,2]
[352380110,1739068272423,-500.0,0.00010948,2]
[352380111,1739068272433,-273.00000339,0.00010948,2]
[352380112,1739068272443,-500.0,0.00010948,2]
[352380113,1739068272452,-1750.99,0.00010948,2]
[352380114,1739068272462,-500.0,0.00010948,2]
[352380115,1739068272471,-500.0,0.00010948,2]
[352380116,1739068272481,-1987.42,0.00010948,2]
[352380117,1739068272491,-500.0,0.00010948,2]
[352380118,1739068272501,-500.0,0.00010948,2]
[352380119,1739068272511,-500.0,0.00010948,2]
[352380120,1739068272520,-500.0,0.00010948,2]
[352380121,1739068272530,-500.0,0.00010948,2]
[352380122,1739068272540,-500.0,0.00010948,2]
[352380123,1739068272549,-500.0,0.00010948,2]